bitfinex-derivatives/quotes_ETHF0:USTF0_20250103
["timestamp","ask_amount","ask_price","bid_price","bid_amount"]
[1735942806534,1.43083413,3622.0,3621.9,0.2762]
[1735942807839,1.43083413,3622.0,3621.9,5.20752775]
[1735942809343,1.43083413,3622.0,3621.9,8.41532775]
[1735942810038,1.70702413,3622.0,3621.9,8.41532775]
[1735942810236,1.43083413,3622.0,3621.9,14.89520076]
[1735942810942,1.70702413,3622.0,3621.9,14.89520076]
[1735942811343,1.43083413,3622.0,3621.9,14.89520076]
[1735942813445,1.70702413,3622.0,3621.9,14.89520076]
[1735942814035,1.43083413,3622.0,3621.9,14.89520076]
[1735942814344,1.00713413,3622.0,3621.9,14.89520076]
[1735942815437,1.00713413,3622.0,3621.9,8.41532775]
[1735942815733,1.28332413,3622.0,3621.9,8.41532775]
[1735942819048,1.00713413,3622.0,3621.9,8.41532775]
[1735942819348,1.28332413,3622.0,3621.9,8.41532775]
[1735942822748,1.28332413,3622.0,3621.9,5.20752775]
[1735942822949,1.28332413,3622.0,3621.9,8.41532775]
[1735942823655,1.00713413,3622.0,3621.9,8.41532775]
[1735942824040,1.28332413,3622.0,3621.9,8.41532775]
[1735942826554,1.28332413,3622.0,3621.9,14.9049312]
[1735942831959,1.28332413,3622.0,3621.9,8.41532775]
[1735942832659,1.28332413,3622.0,3621.9,5.20752775]
[1735942833159,1.00713413,3622.0,3621.9,5.20752775]
[1735942833659,1.28332413,3622.0,3621.9,5.20752775]
[1735942834066,1.00713413,3622.0,3621.9,5.20752775]
[1735942834261,1.28332413,3622.0,3621.9,5.20752775]
[1735942837266,1.00713413,3622.0,3621.9,5.20752775]
[1735942838251,1.28332413,3622.0,3621.9,5.20752775]
[1735942843165,1.28332413,3622.0,3621.9,4.93132775]
[1735942843363,1.28332413,3622.0,3621.9,5.20752775]
[1735942843667,1.28332413,3622.0,3621.9,4.93132775]
[1735942844362,4.53830621,3622.0,3621.9,11.70101489]
[1735942846067,1.28332413,3622.0,3621.9,11.70101489]
[1735942849072,4.54402586,3622.0,3621.9,11.70101489]
[1735942850365,4.54402586,3622.0,3621.9,14.90881489]
[1735942850567,1.28332413,3622.0,3621.9,8.41532775]
[1735942852975,1.28332413,3622.0,3621.9,5.20752775]
[1735942853172,1.28332413,3622.0,3621.9,8.41532775]
[1735942855270,1.28332413,3622.0,3621.9,4.93132775]
[1735942855475,4.49112413,3622.0,3621.9,4.93132775]
[1735942855675,5.02245141,3622.0,3621.9,4.93132775]
[1735942856572,10.18179093,3622.0,3621.7,4.33061423]
[1735942856773,1.28334413,3621.8,3621.7,4.33061423]
[1735942857275,2.15344413,3621.8,3621.7,4.33061423]
[1735942857879,2.68477141,3621.8,3621.7,4.33061423]
[1735942858874,0.27621,3621.7,3621.6,4.60683423]
[1735942859271,0.27621,3621.7,3621.6,4.33061423]
[1735942859467,0.27621,3621.7,3621.6,4.60683423]
[1735942860181,3.5357593,3621.7,3621.6,4.60683423]
[1735942862778,0.27621,3621.7,3621.6,4.60683423]
[1735942865384,5.41299343,3621.8,3621.7,0.27621]
[1735942866087,5.13678343,3621.8,3621.7,0.27621]
[1735942866291,4.71308343,3621.8,3621.7,0.27621]
[1735942866586,4.71308343,3621.8,3621.7,0.72041]
[1735942867494,1.45353413,3621.8,3621.7,12.13928293]
[1735942868390,1.00713413,3621.8,3621.7,15.34708293]
[1735942869192,1.00713413,3621.8,3621.7,8.85116159]
[1735942870798,1.00713413,3621.8,3621.7,17.49801971]
[1735942876102,1.00713413,3621.8,3621.7,14.29021971]
[1735942876296,1.00713413,3621.8,3621.7,17.49801971]
[1735942882409,1.00713413,3621.8,3621.7,15.33661359]
[1735942885211,1.00713413,3621.8,3621.7,8.85116159]
[1735942887108,1.00713413,3621.8,3621.7,8.40696159]
[1735942892609,1.00713413,3621.8,3621.7,8.68166159]
[1735942894015,1.00713413,3621.8,3621.7,17.32851971]
[1735942896217,1.00713413,3621.8,3621.7,17.05381971]
[1735942898912,2.17210213,3622.1,3622.0,0.27619]
[1735942899118,3.17923626,3622.1,3622.0,0.27619]
[1735942900018,1.00713413,3622.1,3622.0,5.19914159]
[1735942901622,1.00713413,3622.1,3622.0,11.68358003]
[1735942902723,1.00713413,3622.1,3622.0,14.89138003]
[1735942904422,1.00713413,3622.1,3622.0,8.40694159]
[1735942905029,1.00713413,3622.1,3622.0,8.83284159]
[1735942908429,1.00713413,3622.1,3622.0,5.62504159]
[1735942908824,1.00713413,3622.1,3622.0,8.83284159]
[1735942910028,1.00713413,3622.1,3622.0,8.40694159]
[1735942911032,1.00713413,3622.1,3622.0,17.05379971]
[1735942912339,1.00713413,3622.1,3622.0,26.85034106]
[1735942916128,1.00713413,3622.1,3622.0,18.20348294]
[1735942920234,1.00713413,3622.1,3622.0,13.00434135]
[1735942920438,1.00713413,3622.1,3601.8,0.7086585]
[1735942920628,1.00713413,3622.1,3618.7,8.92194003]
[1735942920629,3.26244,3618.8,3618.7,8.92194003]
[1735942920826,0.27648,3618.2,3617.0,31.25245902]
[1735942921032,3.48428,3618.2,3618.1,17.81454466]
[1735942921231,5.67138223,3618.2,3618.1,17.81454466]
[1735942921730,5.67138223,3618.2,3618.1,5.7984]
[1735942921731,3.38063397,3618.2,3618.1,5.7984]
[1735942921931,41.1295353,3618.2,3618.1,9.0062]
[1735942922132,42.13666943,3618.2,3618.1,9.0062]
[1735942922328,43.21675207,3618.2,3618.1,9.0062]
[1735942922733,26.62382841,3618.2,3618.1,9.0062]
[1735942923539,23.41602841,3618.2,3618.1,10.2582]
[1735942923734,23.24319444,3618.2,3618.1,6.11020253]
[1735942924040,19.53539444,3618.2,3618.1,8.17889253]
[1735942924336,19.53539444,3618.2,3618.1,4.87468921]
[1735942924337,19.03539444,3618.2,3618.1,4.87468921]
[1735942924534,24.50486264,3618.2,3618.1,4.87468921]
[1735942924932,24.50486264,3618.2,3618.1,2.38631869]
[1735942925138,16.94817767,3618.2,3618.1,2.38631869]
[1735942925438,16.94817767,3618.2,3618.1,6.52849]
[1735942925832,23.41925336,3618.2,3618.1,6.52849]
[1735942926738,22.91925336,3618.2,3618.1,6.52849]
[1735942926931,8.29646183,3618.2,3618.1,6.52849]
[1735942928644,8.29646183,3618.2,3618.1,5.27649]
[1735942928843,8.29646183,3618.2,3618.1,6.52949]
[1735942929041,8.29646183,3618.2,3617.7,0.21517647]
[1735942929245,8.29646183,3618.2,3618.1,1.253]
[1735942930138,8.29646183,3618.2,3618.1,1.52949]
[1735942930740,6.47107569,3618.3,3618.1,1.52949]
[1735942930741,6.47107569,3618.3,3618.1,1.253]
[1735942930947,5.34077554,3618.9,3618.6,0.27644]
[1735942931141,0.1727897,3618.8,3618.6,0.27644]
[1735942931343,5.34077554,3618.9,3618.6,0.27644]
[1735942931644,0.17279047,3618.8,3618.6,0.27644]
[1735942931945,5.34077554,3618.9,3618.6,0.27644]
[1735942932138,0.17279072,3618.8,3618.6,0.27644]
[1735942932340,5.34077554,3618.9,3618.6,0.27644]
[1735942932643,0.17279495,3618.8,3618.6,0.27644]
[1735942932835,0.17279495,3618.7,3618.6,0.27644]
[1735942935545,5.34077554,3618.9,3618.6,0.27644]
[1735942935747,0.17279476,3618.8,3618.1,1.253]
[1735942936052,0.17279476,3618.8,3618.7,0.27644]
[1735942936343,0.17279476,3618.8,3618.1,1.253]
[1735942936344,10.17279468,3618.8,3618.1,1.253]
[1735942936552,5.34077554,3618.2,3618.1,1.253]
[1735942936848,5.51357022,3618.2,3618.1,1.253]
[1735942937451,5.79005022,3618.2,3618.1,1.253]
[1735942937643,0.27649,3618.1,3617.9,0.2765]
[1735942937952,0.27649,3618.1,3618.0,1.253]
[1735942938249,0.44931822,3618.1,3617.9,0.2765]
[1735942938454,0.17282822,3618.0,3616.8,6.909]
[1735942938639,5.34077554,3617.4,3617.3,0.27655]
[1735942938844,2.30581635,3617.4,3617.3,1.52955]
[1735942939044,2.30581522,3617.4,3617.3,1.52955]
[1735942939249,2.30581336,3617.4,3617.3,1.52955]
[1735942940049,0.17283782,3617.4,3617.3,1.52955]
[1735942940247,3.38063782,3617.4,3617.3,1.52955]
[1735942941349,0.17283782,3617.4,3617.3,1.52955]
[1735942941554,0.42583478,3617.7,3617.6,0.27653]
[1735942941753,0.42607095,3617.7,3617.4,0.27654]
[1735942942053,0.42607095,3617.7,3617.3,1.94437]
[1735942942054,0.42607095,3617.7,3617.6,0.27653]
[1735942942553,3.2078,3617.8,3617.7,0.27652]
[1735942945152,3.2078,3617.8,3617.5,0.69135]
[1735942945347,3.2078,3617.8,3617.7,0.27652]
[1735942947351,3.2078,3617.8,3617.7,1.52952]
[1735942948448,2.7078,3617.8,3617.7,1.52952]
[1735942948652,2.13297554,3618.0,3617.9,0.69127]
[1735942948952,2.13297554,3618.0,3617.9,0.27651]
[1735942949556,2.30579461,3618.0,3617.9,0.27651]
[1735942950846,0.07950535,3618.3,3617.9,0.27651]
[1735942951048,0.07950535,3618.3,3617.7,5.15209]
[1735942951049,2.56067554,3618.7,3618.6,0.27645]
[1735942951249,2.56067554,3618.7,3618.6,1.51145]
[1735942952354,2.99125789,3618.7,3618.6,1.51145]
[1735942953953,2.56067554,3618.7,3618.6,1.51145]
[1735942955949,0.4277,3618.7,3618.6,1.51145]
[1735942958352,75.9023002,3618.7,3618.6,1.51145]
[1735942959250,98.71055851,3618.7,3618.6,1.51145]
[1735942959452,98.71055851,3618.7,3618.6,1.235]
[1735942959658,86.66971567,3618.7,3618.6,1.51145]
[1735942959847,86.66971567,3618.7,3618.6,0.27645]
[1735942960053,86.66971567,3618.7,3618.6,1.51145]
[1735942960557,86.66971567,3618.7,3618.6,0.27645]
[1735942960752,86.66971567,3618.7,3618.6,1.51145]
[1735942961753,86.66971567,3618.7,3618.6,1.235]
[1735942962161,70.08189145,3618.7,3618.6,1.235]
[1735942962352,70.08189145,3618.7,3618.6,1.51145]
[1735942962955,80.84659602,3618.7,3618.6,1.51145]
[1735942963956,80.84659602,3618.7,3618.6,1.235]
[1735942964157,80.84659602,3618.7,3618.6,1.51145]
[1735942964563,80.83379602,3618.7,3618.6,1.51145]
[1735942967164,73.27689145,3618.7,3618.6,1.51145]
[1735942969264,79.78449573,3618.7,3618.6,1.51145]
[1735942970065,73.27689145,3618.7,3618.6,1.51145]
[1735942970666,73.27689145,3618.7,3618.6,1.72782266]
[1735942970972,60.83602328,3618.7,3618.6,1.72782266]
[1735942972369,23.09872318,3618.7,3618.6,1.72782266]
[1735942972868,12.33130771,3618.7,3618.6,1.72782266]
[1735942974470,24.77162782,3618.7,3618.6,1.72782266]
[1735942975168,12.33130771,3618.7,3618.6,1.72782266]
[1735942978074,9.12350771,3618.7,3618.6,1.72782266]
[1735942978273,12.33130771,3618.7,3618.6,1.72782266]
[1735942978683,11.83130771,3618.7,3618.6,1.72782266]
[1735942978982,11.33130771,3618.7,3618.6,1.72782266]
[1735942985184,11.33130771,3618.7,3618.6,1.194]
[1735942985483,11.33130771,3618.7,3618.6,1.47045]
[1735942985881,8.12350771,3618.7,3618.6,1.47045]
[1735942986081,11.33130771,3618.7,3618.6,1.47045]
[1735942986274,11.33130771,3618.7,3618.6,0.27645]
[1735942986475,11.33130771,3618.7,3618.6,1.47045]
[1735942991286,10.83130771,3618.7,3618.6,1.47045]
[1735943003198,10.83130771,3618.7,3618.6,0.27645]
[1735943003397,10.83130771,3618.7,3618.6,1.47045]
[1735943004200,23.17547147,3618.7,3618.6,1.194]
[1735943004498,22.67547147,3618.7,3618.6,1.47045]
[1735943005504,29.20201649,3618.7,3618.6,1.47045]
[1735943006897,27.80159481,3618.7,3618.6,1.47045]
[1735943007902,27.80159481,3618.7,3618.6,2.46576226]
[1735943010707,27.30159481,3618.7,3618.6,2.46576226]
[1735943011810,27.30159481,3618.7,3618.6,1.27176226]
[1735943012107,8.43088603,3618.7,3618.6,2.43376226]
[1735943012700,7.93088603,3618.7,3618.6,2.43376226]
[1735943016904,5.78456445,3618.7,3618.6,2.43376226]
[1735943017404,4.40256445,3618.7,3618.6,2.43376226]
[1735943017608,2.34249591,3618.7,3618.6,2.43376226]
[1735943017804,2.08669591,3618.7,3618.6,2.43376226]
[1735943018497,0.432,3618.8,3618.7,0.27644]
[1735943019611,0.4255,3618.9,3618.8,0.27643]
[1735943019803,0.4255,3618.9,3618.8,1.27174226]
[1735943021405,10.16574502,3619.1,3618.8,0.99531226]
[1735943021708,10.16574502,3619.1,3619.0,1.27173226]
[1735943021908,3.6392,3619.1,3619.0,1.27173226]
[1735943022702,4.0688,3619.1,3619.0,1.27173226]
[1735943023801,5.12634951,3619.4,3619.0,1.27173226]
[1735943024003,7.91937497,3619.7,3619.3,4.20311226]
[1735943024207,0.12393078,3619.7,3619.6,1.27168226]
[1735943024505,6.77512986,3619.9,3619.8,0.27636]
[1735943024710,4.78306986,3619.9,3619.8,3.48416]
[1735943024905,0.4114,3620.3,3619.8,3.48416]
[1735943025109,0.4114,3620.3,3620.2,1.27164226]
[1735943025306,0.4114,3620.3,3620.2,2.43364226]
[1735943025810,4.75375896,3620.3,3620.2,5.64144226]
[1735943026311,4.75375896,3620.3,3620.2,4.478247]
[1735943026510,4.75375896,3620.3,3620.2,5.640247]
[1735943027307,2.57948343,3620.3,3620.2,6.7761505]
[1735943028507,0.4114,3620.3,3620.2,6.7761505]
[1735943029419,2.16808343,3620.4,3620.3,0.27632]
[1735943029714,2.16808343,3620.5,3620.4,0.27631]
[1735943030615,2.08810324,3620.5,3620.4,0.27631]
[1735943031110,2.50840324,3620.7,3620.6,0.2763]
[1735943031310,12.50840324,3620.7,3620.6,0.2763]
[1735943032815,10.4203,3620.7,3620.6,0.2763]
[1735943033818,10.4203,3620.7,3620.6,3.4841]
[1735943034321,10.4203,3620.7,3620.6,5.6141205]
[1735943035914,10.4203,3620.7,3620.6,5.9667998]
[1735943037823,0.4203,3620.7,3620.6,5.9667998]
[1735943039019,0.4419,3620.8,3620.7,0.27629]
[1735943040511,0.4419,3620.8,3620.4,1.85177]
[1735943040512,10.4419,3620.8,3620.4,1.161]
[1735943040714,10.4419,3620.8,3620.7,0.27629]
[1735943040920,13.6497,3620.8,3620.5,1.143]
[1735943041113,13.6497,3620.8,3620.5,0.4636]
[1735943041313,13.6497,3620.8,3620.1,0.34185735]
[1735943041314,13.6497,3620.8,3620.1,0.69084]
[1735943041627,13.6497,3620.8,3620.2,1.143]
[1735943041918,13.6497,3620.8,3620.2,1.83381]
[1735943042215,13.6497,3620.8,3620.7,0.27629]
[1735943042415,13.6497,3620.8,3620.3,0.6908]
[1735943042721,13.6497,3620.8,3620.6,0.27629]
[1735943042920,13.6497,3620.8,3620.4,1.143]
[1735943043228,13.6497,3620.8,3620.7,0.27629]
[1735943043517,13.6497,3620.8,3620.3,1.143]
[1735943044013,13.6497,3620.8,3620.7,0.27629]
[1735943044218,13.6497,3620.8,3620.3,1.143]
[1735943044424,13.6497,3620.8,3620.7,0.27629]
[1735943045108,13.6497,3620.8,3620.3,1.143]
[1735943045320,13.6497,3620.8,3620.7,0.27629]
[1735943046112,13.6497,3620.8,3620.3,1.83379]
[1735943046711,0.4483,3620.7,3620.6,0.2763]
[1735943047220,10.4483,3620.7,3620.6,0.2763]
[1735943057023,13.6561,3620.7,3620.6,0.2763]
[1735943062931,17.32270395,3620.7,3620.6,0.2763]
[1735943063728,14.0705788,3620.7,3620.6,0.2763]
[1735943068533,18.41293776,3620.7,3620.6,0.2763]
[1735943070432,19.87529329,3620.7,3620.6,0.2763]
[1735943070933,16.66749329,3620.7,3620.6,0.2763]
[1735943071134,19.87529329,3620.7,3620.6,0.2763]
[1735943079836,25.30324199,3620.7,3620.6,0.2763]
[1735943080932,19.87529329,3620.7,3620.6,0.2763]
[1735943081127,19.42699329,3620.7,3620.6,0.2763]
[1735943081733,19.42699329,3620.7,3620.6,1.4799]
[1735943085841,24.85494199,3620.7,3620.6,1.4799]
[1735943086832,19.42699329,3620.7,3620.6,2.6019]
[1735943087447,5.71919329,3620.7,3620.6,2.6019]
[1735943087744,2.45680635,3620.7,3620.6,2.6019]
[1735943088843,4.34821622,3620.9,3620.8,0.27628]
[1735943089144,4.34821622,3620.9,3620.8,2.54977752]
[1735943094947,4.34821622,3621.1,3621.0,0.27626]
[1735943095146,4.34821622,3621.1,3621.0,1.27065752]
[1735943095348,14.34821622,3621.1,3621.0,1.27065752]
[1735943098449,10.0,3621.1,3621.0,1.27065752]
[1735943099047,10.0,3621.1,3621.0,2.39265752]
[1735943099950,14.34821622,3621.1,3621.0,2.39265752]
[1735943100754,14.34821622,3621.1,3621.0,2.37765752]
[1735943100948,14.34821622,3621.1,3621.0,0.27626]
[1735943101148,14.34821622,3621.1,3621.0,1.38326]
[1735943101851,20.05889888,3621.1,3621.0,1.38326]
[1735943102048,15.71068266,3621.1,3621.0,1.38326]
[1735943103056,10.0,3621.1,3621.0,1.38326]
[1735943103849,10.0,3621.1,3621.0,0.27626]
[1735943104156,10.0,3621.1,3621.0,1.38326]
[1735943106657,10.0,3621.1,3621.0,1.107]
[1735943106848,13.2078,3621.1,3621.0,1.107]
[1735943107253,10.0,3621.1,3621.0,1.107]
[1735943107669,10.0,3621.1,3621.0,1.38326]
[1735943108160,10.41442836,3621.1,3621.0,1.38326]
[1735943120972,10.41442836,3621.1,3621.0,0.27626]
[1735943121277,10.41442836,3621.1,3621.0,1.38326]
[1735943130185,14.75961648,3621.1,3621.0,1.38326]
[1735943131484,10.41442836,3621.1,3621.0,1.38326]
[1735943142390,14.76222706,3621.1,3621.0,1.38326]
[1735943143796,10.41442836,3621.1,3621.0,1.38326]
[1735943144988,9.91442836,3621.1,3621.0,1.38326]
[1735943146091,14.26208388,3621.1,3621.0,1.38326]
[1735943147495,9.91442836,3621.1,3621.0,1.38326]
[1735943153102,15.57521152,3621.1,3621.0,1.38326]
[1735943155191,5.66078316,3621.1,3621.0,1.38326]
[1735943155394,15.57521152,3621.1,3621.0,1.38326]
[1735943158204,9.91442836,3621.1,3621.0,1.38326]
[1735943160501,15.57603347,3621.1,3621.0,1.38326]
[1735943161307,5.66160511,3621.1,3621.0,1.38326]
[1735943161506,5.34050511,3621.1,3621.0,1.38326]
[1735943161701,5.34050511,3621.1,3621.0,2.37765752]
[1735943162699,9.78455831,3621.2,3621.0,2.10139752]
[1735943162899,4.34928804,3621.2,3621.1,0.27626]
[1735943163110,4.34928804,3621.2,3621.1,1.71666]
[1735943166108,0.41436557,3621.2,3621.1,1.71666]
[1735943166613,4.34928804,3621.3,3621.1,1.4404]
[1735943166807,4.34928804,3621.3,3621.2,1.27064752]
[1735943167008,5.43527027,3621.5,3621.4,0.27623]
[1735943167208,15.34969863,3621.5,3621.4,0.27623]
[1735943167711,18.55749863,3621.5,3621.4,0.27623]
[1735943168604,18.55749863,3621.5,3621.4,1.088]
[1735943168810,18.55749863,3621.5,3621.4,1.36423]
[1735943169410,13.12222836,3621.5,3621.4,1.36423]
[1735943169610,13.12222836,3621.5,3621.3,1.088]
[1735943169805,1.4252,3621.4,3621.3,1.36424]
[1735943170206,11.33962836,3621.4,3621.3,1.36424]
[1735943172110,15.52066498,3621.4,3621.3,1.36424]
[1735943172317,5.60623662,3621.4,3621.3,1.36424]
[1735943173406,4.34610409,3621.5,3621.3,1.088]
[1735943173608,14.26053245,3621.5,3621.4,1.27062752]
[1735943175107,14.26053245,3621.5,3621.4,2.79362752]
[1735943176915,9.91442836,3621.5,3621.4,2.79362752]
[1735943178321,9.41442836,3621.5,3621.4,2.79362752]
[1735943178715,9.32882836,3621.5,3621.4,2.79362752]
[1735943179123,12.58691428,3621.5,3621.4,2.79362752]
[1735943185122,9.32882836,3621.5,3621.4,2.79362752]
[1735943186420,8.82882836,3621.5,3621.4,2.79362752]
[1735943188618,8.82882836,3621.5,3621.4,2.35862752]
[1735943188822,11.95412836,3621.5,3621.4,2.35862752]
[1735943192728,12.50126411,3621.5,3621.4,2.35862752]
[1735943192924,12.50126411,3621.5,3621.4,3.94812752]
[1735943194328,10.99932714,3621.5,3621.4,3.94812752]
[1735943194730,2.17049878,3621.5,3621.4,3.94812752]
[1735943195632,1.67049878,3621.5,3621.4,3.94812752]
[1735943197329,3.25808592,3621.6,3621.5,0.27623]
[1735943197537,3.25808592,3621.6,3621.5,3.91042752]
[1735943202442,3.67241894,3621.7,3621.5,3.91042752]
[1735943202639,12.5012473,3621.7,3621.6,0.27622]
[1735943203245,9.24316138,3621.7,3621.6,0.27622]
[1735943205937,13.4453589,3621.7,3621.2,0.27624]
[1735943206146,3.2078,3621.3,3621.2,0.99439752]
[1735943206447,3.2078,3621.3,3621.2,1.27064752]
[1735943206635,12.03662836,3621.3,3621.2,1.27064752]
[1735943206840,12.03662836,3621.3,3621.2,0.99439752]
[1735943207248,12.03662836,3621.3,3621.2,1.27064752]
[1735943207745,13.62852836,3621.3,3621.2,1.27064752]
[1735943208343,14.04286138,3621.3,3621.2,1.27064752]
[1735943209747,10.83506138,3621.3,3621.2,1.27064752]
[1735943210550,15.17816672,3621.3,3621.2,1.27064752]
[1735943210747,18.38596672,3621.3,3621.2,1.27064752]
[1735943212843,14.04286138,3621.3,3621.2,1.27064752]
[1735943213044,10.83506138,3621.3,3621.2,1.27064752]
[1735943213751,14.04286138,3621.3,3621.2,1.27064752]
[1735943213951,10.83506138,3621.3,3621.2,1.27064752]
[1735943215245,9.24316138,3621.3,3621.2,1.27064752]
[1735943216552,13.58494855,3621.3,3621.2,1.27064752]
[1735943217941,9.24316138,3621.3,3621.2,1.27064752]
[1735943219952,9.24316138,3621.3,3621.2,0.27625]
[1735943220154,9.24316138,3621.3,3621.2,1.27064752]
[1735943222855,9.24316138,3621.3,3621.2,1.28325647]
[1735943223751,9.24316138,3621.3,3621.2,0.27625]
[1735943225259,13.58494855,3621.3,3621.2,0.27625]
[1735943228662,9.24316138,3621.3,3621.2,0.27625]
[1735943229864,13.58494855,3621.3,3621.2,0.27625]
[1735943231061,9.24316138,3621.3,3621.2,0.27625]
[1735943233461,10.78146138,3621.3,3621.2,0.27625]
[1735943235360,9.24316138,3621.3,3621.2,0.27625]
[1735943235962,13.58494855,3621.3,3621.2,0.27625]
[1735943238257,13.58494855,3621.3,3621.0,3.55300647]
[1735943238659,13.58494855,3621.3,3621.2,0.27625]
[1735943239057,13.58494855,3621.3,3620.7,3.1358]
[1735943239058,0.41433302,3621.2,3620.7,3.1358]
[1735943239264,5.09233302,3621.2,3621.0,0.27626]
[1735943239468,13.92116138,3621.2,3621.0,0.27626]
[1735943239869,12.45096138,3621.2,3621.1,0.27626]
[1735943240464,16.37841553,3621.2,3621.1,0.27626]
[1735943241469,16.79285218,3621.2,3621.1,0.27626]
[1735943242470,13.58505218,3621.2,3621.1,1.28326647]
[1735943243670,9.24326501,3621.2,3621.1,1.28326647]
[1735943244172,9.24326501,3621.2,3621.1,0.27626]
[1735943249181,12.50157095,3621.2,3621.1,0.27626]
[1735943250378,9.24326501,3621.2,3621.1,0.27626]
[1735943251484,13.58505218,3621.2,3621.1,0.27626]
[1735943251977,13.58505218,3621.2,3621.1,1.77896]
[1735943252482,9.24326501,3621.2,3621.1,1.77896]
[1735943254970,0.41443665,3621.2,3621.1,1.77896]
[1735943255176,4.34178717,3621.3,3621.2,0.27625]
[1735943255376,4.34178717,3621.3,3621.2,4.33765647]
[1735943257176,3.2598007,3621.3,3621.2,4.33765647]
[1735943257982,2.7598007,3621.3,3621.2,4.33765647]
[1735943259886,4.34178717,3621.8,3621.7,0.27621]
[1735943260282,13.17061553,3621.8,3621.7,0.27621]
[1735943261190,8.82882836,3621.8,3621.7,1.28321647]
[1735943268590,8.82882836,3621.8,3621.7,2.86801647]
[1735943270086,12.13808717,3622.2,3622.1,0.27618]
[1735943270284,16.62512836,3622.2,3622.1,0.27618]
[1735943271387,13.41732836,3622.2,3622.1,0.27618]
[1735943272983,13.41732836,3622.2,3622.1,1.28318647]
[1735943274087,4.5885,3622.2,3622.1,1.28318647]
[1735943274396,1.5974,3622.5,3622.4,0.27616]
[1735943274686,3.0128,3622.5,3622.4,0.27616]
[1735943274888,11.84162836,3622.5,3622.4,0.27616]
[1735943275289,8.82882836,3622.5,3622.4,0.27616]
[1735943275589,4.34178717,3622.6,3622.5,0.27615]
[1735943275796,13.17061553,3622.6,3622.5,1.28315647]
[1735943276795,8.82882836,3622.6,3622.5,1.28315647]
[1735943278291,8.55659364,3623.1,3622.5,1.28315647]
[1735943278292,7.54958717,3623.1,3622.5,1.28315647]
[1735943278497,3.0654,3623.0,3622.9,0.27611]
[1735943278898,11.89422836,3623.0,3622.9,0.27611]
[1735943279098,12.30844625,3623.0,3622.8,0.27612]
[1735943279289,12.30844625,3623.0,3622.9,0.27612]
[1735943280695,12.30844625,3623.0,3622.7,1.00700647]
[1735943281000,12.30844625,3623.0,3622.8,0.27612]
[1735943281393,13.31545272,3623.0,3622.7,0.27613]
[1735943282297,13.31545272,3623.0,3622.5,1.00700647]
[1735943282499,13.31545272,3623.0,3622.8,0.27613]
[1735943282698,12.90123483,3623.0,3622.8,0.27613]
[1735943286204,12.90123483,3623.0,3622.5,1.00700647]
[1735943286400,11.89422836,3623.0,3622.9,0.27612]
[1735943288205,11.89422836,3623.0,3622.7,1.00700647]
[1735943288404,11.89422836,3623.0,3622.9,0.27612]
[1735943291110,11.89422836,3623.0,3622.9,1.28312647]
[1735943292400,8.82882836,3623.0,3622.9,1.28312647]
[1735943292602,3.2078,3623.1,3623.0,0.27611]
[1735943292797,12.03662836,3623.1,3623.0,0.27611]
[1735943295608,3.2078,3623.1,3623.0,0.27611]
[1735943297206,4.21480647,3623.5,3622.9,2.78429647]
[1735943297407,13.04363483,3623.5,3623.3,0.27608]
[1735943297704,13.04363483,3623.5,3623.2,0.27609]
[1735943298009,13.04363483,3623.5,3623.1,1.00700647]
[1735943298207,13.04363483,3623.5,3623.1,1.087]
[1735943298409,12.03662836,3623.5,3623.1,2.09400647]
[1735943298611,13.04363483,3623.5,3623.4,0.27608]
[1735943299309,13.04363483,3623.5,3623.3,0.27609]
[1735943300310,12.03662836,3623.5,3623.1,2.09400647]
[1735943300605,12.03662836,3623.5,3623.4,0.27608]
[1735943301598,3.2078,3623.5,3623.4,1.74028]
[1735943304911,3.2078,3623.9,3623.8,0.27605]
[1735943305305,12.03662836,3623.9,3623.8,0.27605]
[1735943305907,12.03662836,3623.9,3623.8,1.82265]
[1735943307710,12.03662836,3623.9,3623.8,2.82965647]
[1735943308712,8.82882836,3623.9,3623.8,2.82965647]
[1735943310027,2.51450647,3624.2,3623.9,0.27604]
[1735943310314,11.34333483,3624.2,3624.0,0.27603]
[1735943310917,11.34333483,3624.2,3623.8,3.64060647]
[1735943311117,11.34333483,3624.2,3624.1,0.27603]
[1735943311318,8.82882836,3624.2,3624.1,0.27603]
[1735943311519,7.54958717,3624.5,3624.4,0.276]
[1735943311716,16.37841553,3624.5,3624.4,0.276]
[1735943311916,16.37841553,3624.5,3624.3,1.00700647]
[1735943312111,16.37841553,3624.5,3624.4,0.276]
[1735943312414,16.37841553,3624.5,3624.4,1.8694]
[1735943313011,12.03662836,3624.5,3624.4,1.8694]
[1735943316418,12.03662836,3624.5,3624.4,1.5934]
[1735943316620,12.03662836,3624.5,3624.3,0.27601]
[1735943316819,3.1919,3624.4,3624.3,0.27601]
[1735943317326,13.02773483,3624.4,3623.9,1.4902]
[1735943317517,3.2078,3624.0,3623.9,1.086]
[1735943317919,3.2078,3624.0,3623.9,1.36204]
[1735943318217,1.00700647,3624.2,3623.9,1.086]
[1735943318520,2.16219655,3624.1,3623.9,1.086]
[1735943318921,10.99102491,3624.1,3623.9,1.36204]
[1735943319518,10.99102491,3624.1,3624.0,0.27604]
[1735943319712,10.99102491,3624.1,3623.9,2.36904647]
[1735943319918,10.99102491,3624.1,3623.9,2.09300647]
[1735943320122,10.99102491,3624.1,3624.0,0.27604]
[1735943320724,1.66219655,3624.1,3624.0,0.27604]
[1735943320927,1.66219655,3624.3,3624.2,0.27602]
[1735943321131,10.49102491,3624.3,3624.2,0.27602]
[1735943321631,10.49102491,3624.3,3624.0,3.38513]
[1735943321818,13.02623138,3624.3,3624.0,1.086]
[1735943322723,10.49102491,3624.3,3624.2,0.27602]
[1735943324027,1.66219655,3624.3,3624.2,0.27602]
[1735943324524,3.2078,3624.4,3624.3,0.27601]
[1735943324723,12.03662836,3624.4,3624.3,0.27601]
[1735943326428,12.03662836,3624.4,3624.2,1.583]
[1735943326629,12.03662836,3624.4,3624.3,0.27601]
[1735943327129,13.04363483,3624.4,3624.0,1.36203]
[1735943327322,13.04363483,3624.4,3624.1,0.27603]
[1735943327523,13.04363483,3624.4,3624.0,1.086]
[1735943327928,13.04363483,3624.4,3624.0,1.36203]
[1735943328129,13.04363483,3624.4,3624.0,1.086]
[1735943328523,13.04363483,3624.4,3624.0,1.36203]
[1735943328524,16.28801589,3624.4,3624.0,1.36203]
[1735943328927,1.00700647,3624.2,3623.4,3.2078]
[1735943329133,0.2761,3623.2,3622.9,0.29066132]